[Event "Late-Titled-Tuesday-Blitz-May-14-2024"]
[Site "Chess.com"]
[Date "2024.05.14"]
[Round "6"]
[White "DeArron_Fox"]
[Black "Felix-Rose"]
[Result "0-1"]
[WhiteElo "2547"]
[BlackElo "2314"]
[TimeControl "180+1"]
[EndTime "15:06:21 PDT"]
[Termination "Felix-Rose won by checkmate"]

1. d4 {[%clk 0:03:00.9]} 1... d5 {[%clk 0:02:58.6]} 2. c4 {[%clk 0:03:01.3]}
2... e6 {[%clk 0:02:59]} 3. Nc3 {[%clk 0:03:01.6]} 3... Nf6 {[%clk 0:02:59.1]}
4. cxd5 {[%clk 0:03:01.9]} 4... exd5 {[%clk 0:03:00]} 5. Bg5 {[%clk 0:03:02.3]}
5... c6 {[%clk 0:03:00.9]} 6. e3 {[%clk 0:03:02.7]} 6... Be7 {[%clk 0:03:01.5]}
7. Bd3 {[%clk 0:03:03.3]} 7... Nbd7 {[%clk 0:03:02.2]} 8. Qc2 {[%clk 0:03:03.8]}
8... h6 {[%clk 0:03:02.6]} 9. Bh4 {[%clk 0:03:03.6]} 9... Nh5 {[%clk 0:03:03.2]}
10. Bxe7 {[%clk 0:03:03]} 10... Qxe7 {[%clk 0:03:04.1]} 11. Nge2 {[%clk
0:02:57.2]} 11... Nb6 {[%clk 0:03:03.8]} 12. O-O {[%clk 0:02:51.9]} 12... O-O
{[%clk 0:03:03.2]} 13. Rae1 {[%clk 0:02:51.7]} 13... Bd7 {[%clk 0:03:01.5]} 14.
Nc1 {[%clk 0:02:48.3]} 14... Rae8 {[%clk 0:02:54.5]} 15. f3 {[%clk 0:02:46.1]}
15... f5 {[%clk 0:02:54.1]} 16. Nb3 {[%clk 0:02:36.4]} 16... Nc8 {[%clk
0:02:47.4]} 17. Nc5 {[%clk 0:02:19.4]} 17... Nd6 {[%clk 0:02:47.6]} 18. e4
{[%clk 0:00:26.4]} 18... fxe4 {[%clk 0:02:45.7]} 19. fxe4 {[%clk 0:00:27.3]}
19... Rxf1+ {[%clk 0:02:45.5]} 20. Rxf1 {[%clk 0:00:27.2]} 20... dxe4 {[%clk
0:02:45.2]} 21. N3xe4 {[%clk 0:00:25.4]} 21... Nxe4 {[%clk 0:02:43.5]} 22. Bxe4
{[%clk 0:00:24.8]} 22... Nf6 {[%clk 0:02:43.6]} 23. Bg6 {[%clk 0:00:24]} 23...
Qe3+ {[%clk 0:02:40.3]} 24. Kh1 {[%clk 0:00:24.1]} 24... Rb8 {[%clk 0:02:11.2]}
25. Qc4+ {[%clk 0:00:22.6]} 25... Kh8 {[%clk 0:02:09.1]} 26. Nxd7 {[%clk
0:00:21.3]} 26... Nxd7 {[%clk 0:02:09.4]} 27. Qf7 {[%clk 0:00:20.1]} 27... Qxd4
{[%clk 0:02:00.8]} 28. h3 {[%clk 0:00:15.6]} 28... Nf6 {[%clk 0:01:59.4]} 29.
Qc7 {[%clk 0:00:13.3]} 29... Qd8 {[%clk 0:01:56.9]} 30. Qe5 {[%clk 0:00:10.3]}
30... Qf8 {[%clk 0:01:50.9]} 31. Bb1 {[%clk 0:00:07.1]} 31... Re8 {[%clk
0:01:48.9]} 32. Qf5 {[%clk 0:00:04.9]} 32... Qe7 {[%clk 0:01:42.2]} 33. Qg6
{[%clk 0:00:04.5]} 33... Rf8 {[%clk 0:01:40.1]} 34. Bc2 {[%clk 0:00:02.5]} 34...
Qf7 {[%clk 0:01:37.8]} 35. Qg3 {[%clk 0:00:02.3]} 35... Qh5 {[%clk 0:01:34]} 36.
Bd1 {[%clk 0:00:02]} 36... Qg5 {[%clk 0:01:33.6]} 37. Qxg5 {[%clk 0:00:01.8]}
37... hxg5 {[%clk 0:01:33.8]} 38. Re1 {[%clk 0:00:02.7]} 38... Nd5 {[%clk
0:01:33]} 39. Bb3 {[%clk 0:00:02.2]} 39... Nf4 {[%clk 0:01:32.2]} 40. Re7 {[%clk
0:00:02]} 40... b5 {[%clk 0:01:28.5]} 41. Rxa7 {[%clk 0:00:02]} 41... Rd8 {[%clk
0:01:29]} 42. Rc7 {[%clk 0:00:02]} 42... Rd2 {[%clk 0:01:29.4]} 43. Kh2 {[%clk
0:00:02.6]} 43... Rxg2+ {[%clk 0:01:29.2]} 44. Kh1 {[%clk 0:00:03.5]} 44... Rxb2
{[%clk 0:01:29.7]} 45. Rxc6 {[%clk 0:00:04.1]} 45... Nxh3 {[%clk 0:01:29.6]} 46.
Rc8+ {[%clk 0:00:04.1]} 46... Kh7 {[%clk 0:01:29.5]} 47. Bc2+ {[%clk 0:00:04.5]}
47... g6 {[%clk 0:01:27.6]} 48. Rc7+ {[%clk 0:00:04.4]} 48... Kh6 {[%clk
0:01:28.1]} 49. Bb3 {[%clk 0:00:02.5]} 49... g4 {[%clk 0:01:25.6]} 50. Rc3
{[%clk 0:00:02.5]} 50... Kg5 {[%clk 0:01:25.3]} 51. Rc5+ {[%clk 0:00:02.2]}
51... Kh4 {[%clk 0:01:25.5]} 52. Rc3 {[%clk 0:00:01.8]} 52... Nf2+ {[%clk
0:01:23.2]} 53. Kg1 {[%clk 0:00:01.8]} 53... g3 {[%clk 0:01:23.7]} 54. Bd5
{[%clk 0:00:00.8]} 54... Nh3+ {[%clk 0:01:16.3]} 55. Kf1 {[%clk 0:00:01.3]}
55... Rb1+ {[%clk 0:01:14.7]} 56. Ke2 {[%clk 0:00:01.3]} 56... Nf4+ {[%clk
0:01:15.4]} 57. Kf3 {[%clk 0:00:01.7]} 57... Nxd5 {[%clk 0:01:16.1]} 58. Rc8
{[%clk 0:00:01.4]} 58... Rf1+ {[%clk 0:01:14.3]} 59. Kg2 {[%clk 0:00:01.7]}
59... Rf2+ {[%clk 0:01:14.5]} 60. Kg1 {[%clk 0:00:02.6]} 60... Nf4 {[%clk
0:01:13.5]} 61. Rh8+ {[%clk 0:00:02.4]} 61... Kg4 {[%clk 0:01:13.9]} 62. a4
{[%clk 0:00:02.1]} 62... b4 {[%clk 0:01:12.9]} 63. a5 {[%clk 0:00:01.9]} 63...
Ra2 {[%clk 0:01:12.9]} 64. a6 {[%clk 0:00:02.1]} 64... Ra1# {[%clk 0:01:12.9]}
0-1

[Event "Late-Titled-Tuesday-Blitz-May-14-2024"]
[Site "Chess.com"]
[Date "2024.05.14"]
[Round "6"]
[White "Rodalquilar"]
[Black "Grischuk"]
[Result "1-0"]
[WhiteElo "2873"]
[BlackElo "3116"]
[TimeControl "180+1"]
[EndTime "15:06:22 PDT"]
[Termination "Rodalquilar won by resignation"]

1. d4 {[%clk 0:03:00.9]} 1... e6 {[%clk 0:03:00.6]} 2. Nf3 {[%clk 0:03:01.1]}
2... c5 {[%clk 0:02:58.5]} 3. c3 {[%clk 0:03:00.8]} 3... Nf6 {[%clk 0:02:58.1]}
4. Bf4 {[%clk 0:03:01.1]} 4... cxd4 {[%clk 0:02:53.7]} 5. cxd4 {[%clk
0:03:01.2]} 5... Qb6 {[%clk 0:02:54.3]} 6. Qd2 {[%clk 0:02:57.6]} 6... Nc6
{[%clk 0:02:19.1]} 7. Nc3 {[%clk 0:02:56]} 7... Bb4 {[%clk 0:02:19.3]} 8. a3
{[%clk 0:02:40.1]} 8... Ne4 {[%clk 0:02:14.1]} 9. Qd3 {[%clk 0:02:40.6]} 9...
Nxc3 {[%clk 0:02:03.4]} 10. bxc3 {[%clk 0:02:35.2]} 10... Ba5 {[%clk 0:02:03.5]}
11. e4 {[%clk 0:02:27.3]} 11... Qb2 {[%clk 0:01:55.7]} 12. Rc1 {[%clk
0:02:27.5]} 12... d5 {[%clk 0:01:51.8]} 13. exd5 {[%clk 0:02:11.4]} 13... exd5
{[%clk 0:01:50.3]} 14. Be2 {[%clk 0:02:11.9]} 14... h6 {[%clk 0:01:36.2]} 15.
O-O {[%clk 0:02:11.6]} 15... Qxa3 {[%clk 0:01:31.7]} 16. Ne5 {[%clk 0:01:43.8]}
16... O-O {[%clk 0:00:55.3]} 17. Nxc6 {[%clk 0:01:34.7]} 17... bxc6 {[%clk
0:00:55]} 18. Qg3 {[%clk 0:01:31.6]} 18... Qe7 {[%clk 0:00:46.7]} 19. Bd6 {[%clk
0:01:27.4]} 19... Qxe2 {[%clk 0:00:37.8]} 20. Bxf8 {[%clk 0:01:20.6]} 20... Kxf8
{[%clk 0:00:30.5]} 21. Rfe1 {[%clk 0:01:20.9]} 21... Qc4 {[%clk 0:00:24.2]} 22.
Qd6+ {[%clk 0:01:15.1]} 22... Kg8 {[%clk 0:00:24.6]} 23. Re8+ {[%clk 0:01:14]}
23... Kh7 {[%clk 0:00:25.2]} 24. Qf8 {[%clk 0:01:14.4]} 24... Bb7 {[%clk
0:00:18.7]} 25. Rxa8 {[%clk 0:01:09.8]} 25... Bxa8 {[%clk 0:00:18.2]} 26. Qxa8
{[%clk 0:01:10.7]} 26... Bxc3 {[%clk 0:00:17]} 27. Qxa7 {[%clk 0:01:08.7]} 27...
Bxd4 {[%clk 0:00:05.1]} 28. Rxc4 {[%clk 0:01:06.3]} 28... Bxa7 {[%clk
0:00:05.2]} 29. Rxc6 {[%clk 0:01:07]} 29... Bd4 {[%clk 0:00:04.6]} 30. Rd6
{[%clk 0:01:06.4]} 30... g6 {[%clk 0:00:04.7]} 31. Rxd5 {[%clk 0:01:06.7]} 31...
Bf6 {[%clk 0:00:05]} 32. g3 {[%clk 0:01:03.7]} 32... h5 {[%clk 0:00:04.9]} 33.
Kg2 {[%clk 0:01:03.7]} 33... Kg7 {[%clk 0:00:04.9]} 34. Kf3 {[%clk 0:01:03.9]}
34... Bb2 {[%clk 0:00:05]} 35. Ke4 {[%clk 0:01:04.3]} 35... f5+ {[%clk 0:00:05]}
36. Kd3 {[%clk 0:00:59.9]} 36... Ba1 {[%clk 0:00:05]} 37. f3 {[%clk 0:01:00.2]}
37... Bf6 {[%clk 0:00:04.4]} 38. h3 {[%clk 0:01:00.5]} 38... Bb2 {[%clk
0:00:04.3]} 39. Rb5 {[%clk 0:01:00.8]} 39... Ba1 {[%clk 0:00:04.1]} 40. Ra5
{[%clk 0:01:00.7]} 40... Bb2 {[%clk 0:00:04.3]} 41. Ra2 {[%clk 0:01:00.7]} 41...
Be5 {[%clk 0:00:04.3]} 42. Rg2 {[%clk 0:00:59.8]} 42... Kf6 {[%clk 0:00:03.4]}
43. g4 {[%clk 0:00:57.8]} 43... hxg4 {[%clk 0:00:03.1]} 44. hxg4 {[%clk
0:00:58.4]} 44... fxg4 {[%clk 0:00:03.2]} 45. Rxg4 {[%clk 0:00:59.3]} 45... Kf5
{[%clk 0:00:03]} 46. Ke3 {[%clk 0:00:57.1]} 46... Kf6 {[%clk 0:00:03.2]} 47. Ra4
{[%clk 0:00:55.5]} 47... Kf7 {[%clk 0:00:03.5]} 48. Ke4 {[%clk 0:00:53]} 48...
Bf6 {[%clk 0:00:03.7]} 49. Ra6 {[%clk 0:00:53.1]} 49... Kg7 {[%clk 0:00:03.9]}
50. Kf4 {[%clk 0:00:53.2]} 50... Bb2 {[%clk 0:00:03.6]} 51. Kg5 {[%clk
0:00:52.1]} 51... Bc1+ {[%clk 0:00:03.9]} 52. f4 {[%clk 0:00:52.6]} 52... Kf7
{[%clk 0:00:04]} 53. Rf6+ {[%clk 0:00:50.8]} 53... Ke7 {[%clk 0:00:04.5]} 54.
Rxg6 {[%clk 0:00:51]} 1-0

[Event "Late-Titled-Tuesday-Blitz-May-14-2024"]
[Site "Chess.com"]
[Date "2024.05.14"]
[Round "6"]
[White "Eloist"]
[Black "azikom"]
[Result "0-1"]
[WhiteElo "2432"]
[BlackElo "2691"]
[TimeControl "180+1"]
[EndTime "15:06:23 PDT"]
[Termination "azikom won on time"]

1. e4 {[%clk 0:03:00.9]} 1... c5 {[%clk 0:03:00.2]} 2. Nf3 {[%clk 0:03:00.5]}
2... e6 {[%clk 0:03:01.1]} 3. d4 {[%clk 0:02:59.8]} 3... cxd4 {[%clk 0:03:02]}
4. Nxd4 {[%clk 0:03:00.5]} 4... a6 {[%clk 0:03:02.5]} 5. Bd3 {[%clk 0:03:00.3]}
5... Nc6 {[%clk 0:03:02]} 6. Nxc6 {[%clk 0:02:55.7]} 6... bxc6 {[%clk
0:03:02.9]} 7. O-O {[%clk 0:02:55.3]} 7... d5 {[%clk 0:03:03.4]} 8. c4 {[%clk
0:02:55]} 8... Nf6 {[%clk 0:03:03.7]} 9. Nd2 {[%clk 0:02:41.2]} 9... Be7 {[%clk
0:03:02.7]} 10. Qe2 {[%clk 0:02:36.8]} 10... O-O {[%clk 0:03:02.2]} 11. e5
{[%clk 0:02:28.2]} 11... Nd7 {[%clk 0:03:01.6]} 12. Nf3 {[%clk 0:02:22.3]} 12...
Nc5 {[%clk 0:03:00.6]} 13. Bc2 {[%clk 0:02:21.1]} 13... a5 {[%clk 0:03:01]} 14.
Nd4 {[%clk 0:02:01.8]} 14... Qb6 {[%clk 0:02:45.2]} 15. Be3 {[%clk 0:01:09.5]}
15... Ba6 {[%clk 0:02:44.1]} 16. b3 {[%clk 0:00:49.3]} 16... Rfd8 {[%clk
0:02:42.2]} 17. Rac1 {[%clk 0:00:41.6]} 17... Rac8 {[%clk 0:02:39]} 18. Rfe1
{[%clk 0:00:28.2]} 18... g6 {[%clk 0:02:38.1]} 19. Qg4 {[%clk 0:00:20.2]} 19...
dxc4 {[%clk 0:02:28.7]} 20. bxc4 {[%clk 0:00:19.7]} 20... Qb4 {[%clk 0:02:19.2]}
21. Nb3 {[%clk 0:00:17.2]} 21... Nd3 {[%clk 0:02:09.2]} 22. Bxd3 {[%clk
0:00:16.6]} 22... Rxd3 {[%clk 0:02:09.5]} 23. Red1 {[%clk 0:00:08.2]} 23...
Rxd1+ {[%clk 0:02:05.5]} 24. Rxd1 {[%clk 0:00:07.9]} 24... a4 {[%clk 0:02:03.6]}
25. Nd2 {[%clk 0:00:06]} 25... Rd8 {[%clk 0:02:00.7]} 26. Ne4 {[%clk 0:00:06]}
26... Rxd1+ {[%clk 0:01:53.2]} 27. Qxd1 {[%clk 0:00:06.9]} 27... Qxc4 {[%clk
0:01:40.6]} 28. Bg5 {[%clk 0:00:05.5]} 28... Bxg5 {[%clk 0:01:32.6]} 29. Nxg5
{[%clk 0:00:06.4]} 29... Qd5 {[%clk 0:01:11.3]} 30. Qb1 {[%clk 0:00:05.7]} 30...
Qxe5 {[%clk 0:00:59]} 31. Nf3 {[%clk 0:00:05.8]} 31... Qb5 {[%clk 0:00:52]} 32.
Qd1 {[%clk 0:00:04.4]} 32... Qd3 {[%clk 0:00:45.8]} 33. Qc1 {[%clk 0:00:02.7]}
33... Bb5 {[%clk 0:00:38.9]} 34. h3 {[%clk 0:00:02.1]} 34... Qd5 {[%clk
0:00:18.9]} 35. Qh6 {[%clk 0:00:01.3]} 35... f6 {[%clk 0:00:18.8]} 0-1

[Event "Late-Titled-Tuesday-Blitz-May-14-2024"]
[Site "Chess.com"]
[Date "2024.05.14"]
[Round "6"]
[White "Duhless"]
[Black "Szparu"]
[Result "1-0"]
[WhiteElo "3114"]
[BlackElo "2891"]
[TimeControl "180+1"]
[EndTime "15:06:24 PDT"]
[Termination "Duhless won by checkmate"]

1. e4 {[%clk 0:03:00.9]} 1... e6 {[%clk 0:02:34]} 2. d4 {[%clk 0:02:57.4]} 2...
d5 {[%clk 0:02:32.1]} 3. e5 {[%clk 0:02:57.7]} 3... c5 {[%clk 0:02:32.1]} 4. c3
{[%clk 0:02:58.4]} 4... Nc6 {[%clk 0:02:32.6]} 5. Nf3 {[%clk 0:02:59]} 5... Bd7
{[%clk 0:02:32.9]} 6. Be2 {[%clk 0:02:56.5]} 6... Nge7 {[%clk 0:02:32.9]} 7. O-O
{[%clk 0:02:56.4]} 7... Nf5 {[%clk 0:02:33.2]} 8. Bd3 {[%clk 0:02:55]} 8... cxd4
{[%clk 0:02:32.7]} 9. Bxf5 {[%clk 0:02:55]} 9... exf5 {[%clk 0:02:33.6]} 10.
cxd4 {[%clk 0:02:55.2]} 10... h6 {[%clk 0:02:32.3]} 11. Nc3 {[%clk 0:02:53.3]}
11... Be6 {[%clk 0:02:32.6]} 12. Ne1 {[%clk 0:02:51.2]} 12... Be7 {[%clk
0:02:30.9]} 13. Be3 {[%clk 0:02:48.2]} 13... Rc8 {[%clk 0:02:30.3]} 14. Rc1
{[%clk 0:02:47.4]} 14... O-O {[%clk 0:02:26.6]} 15. Nd3 {[%clk 0:02:41.2]} 15...
Na5 {[%clk 0:02:12.4]} 16. b3 {[%clk 0:02:37.3]} 16... Ba3 {[%clk 0:02:09.4]}
17. Rc2 {[%clk 0:02:37.2]} 17... Nc6 {[%clk 0:02:07.7]} 18. Ne2 {[%clk 0:02:33]}
18... Nb4 {[%clk 0:01:59.9]} 19. Rxc8 {[%clk 0:02:17.5]} 19... Qxc8 {[%clk
0:01:59.7]} 20. Nxb4 {[%clk 0:02:16]} 20... Bxb4 {[%clk 0:01:59.6]} 21. Nf4
{[%clk 0:02:16.8]} 21... Be7 {[%clk 0:01:50.3]} 22. Qf3 {[%clk 0:02:08.2]} 22...
g5 {[%clk 0:01:42.7]} 23. Nxd5 {[%clk 0:01:58.6]} 23... Bd8 {[%clk 0:01:36.4]}
24. Nf6+ {[%clk 0:00:40.8]} 24... Bxf6 {[%clk 0:01:36.1]} 25. exf6 {[%clk
0:00:41.7]} 25... f4 {[%clk 0:01:36.7]} 26. Bd2 {[%clk 0:00:40]} 26... Qd7
{[%clk 0:01:35.7]} 27. Re1 {[%clk 0:00:31.2]} 27... Rc8 {[%clk 0:01:28.7]} 28.
h4 {[%clk 0:00:16.4]} 28... Bg4 {[%clk 0:00:48.4]} 29. Qe4 {[%clk 0:00:13.5]}
29... Bf5 {[%clk 0:00:44.3]} 30. Qe5 {[%clk 0:00:11.9]} 30... Rc2 {[%clk
0:00:32.2]} 31. hxg5 {[%clk 0:00:08.9]} 31... hxg5 {[%clk 0:00:31.4]} 32. Bxf4
{[%clk 0:00:08.2]} 32... gxf4 {[%clk 0:00:25.2]} 33. Qxf4 {[%clk 0:00:08.1]}
33... Rc6 {[%clk 0:00:20.6]} 34. Qh6 {[%clk 0:00:06.3]} 34... Rxf6 {[%clk
0:00:09.8]} 35. Qxf6 {[%clk 0:00:07.2]} 35... Bg6 {[%clk 0:00:09.5]} 36. d5
{[%clk 0:00:06.5]} 36... Qxd5 {[%clk 0:00:08.9]} 37. Re8+ {[%clk 0:00:05.9]}
37... Kh7 {[%clk 0:00:09.8]} 38. Rh8# {[%clk 0:00:06.4]} 1-0

[Event "Late-Titled-Tuesday-Blitz-May-14-2024"]
[Site "Chess.com"]
[Date "2024.05.14"]
[Round "6"]
[White "xasid81"]
[Black "YouShallNotPass001"]
[Result "0-1"]
[WhiteElo "2618"]
[BlackElo "2504"]
[TimeControl "180+1"]
[EndTime "15:06:28 PDT"]
[Termination "YouShallNotPass001 won by checkmate"]

1. h4 {[%clk 0:03:00.9]} 1... Nf6 {[%clk 0:03:00.9]} 2. a4 {[%clk 0:03:00.4]}
2... d5 {[%clk 0:03:00.7]} 3. b3 {[%clk 0:03:00.5]} 3... e5 {[%clk 0:03:00.7]}
4. g3 {[%clk 0:03:01]} 4... g6 {[%clk 0:02:58.1]} 5. Bb2 {[%clk 0:03:01.5]} 5...
Nc6 {[%clk 0:02:57]} 6. Bg2 {[%clk 0:03:00.9]} 6... Bg7 {[%clk 0:02:56.5]} 7. d3
{[%clk 0:03:01.1]} 7... O-O {[%clk 0:02:56.8]} 8. e3 {[%clk 0:03:00.8]} 8... Bg4
{[%clk 0:02:54]} 9. f3 {[%clk 0:02:59.2]} 9... Be6 {[%clk 0:02:51.8]} 10. Ne2
{[%clk 0:02:58.9]} 10... Nd7 {[%clk 0:02:46.2]} 11. d4 {[%clk 0:02:58.4]} 11...
f5 {[%clk 0:02:44.2]} 12. dxe5 {[%clk 0:02:56.4]} 12... Ndxe5 {[%clk 0:02:42.5]}
13. Nd4 {[%clk 0:02:54]} 13... Bf7 {[%clk 0:02:38.8]} 14. O-O {[%clk 0:02:51.7]}
14... Re8 {[%clk 0:02:34.1]} 15. h5 {[%clk 0:02:45.9]} 15... Qg5 {[%clk
0:02:21.6]} 16. f4 {[%clk 0:02:22.1]} 16... Qxg3 {[%clk 0:02:20.5]} 17. fxe5
{[%clk 0:02:19.8]} 17... Qxe3+ {[%clk 0:02:19.8]} 18. Rf2 {[%clk 0:02:01.9]}
18... Bxe5 {[%clk 0:01:53.9]} 19. Nxc6 {[%clk 0:01:29.6]} 19... Bxb2 {[%clk
0:01:29.6]} 20. Ra2 {[%clk 0:01:26]} 20... Bf6 {[%clk 0:01:29.1]} 21. Nb4 {[%clk
0:01:10.8]} 21... Bh4 {[%clk 0:01:02]} 22. c3 {[%clk 0:01:03.9]} 22... Bxf2+
{[%clk 0:00:58.8]} 23. Rxf2 {[%clk 0:01:03.1]} 23... c6 {[%clk 0:00:55.1]} 24.
Nd3 {[%clk 0:00:58.3]} 24... d4 {[%clk 0:00:41.5]} 25. c4 {[%clk 0:00:56.3]}
25... Qg5 {[%clk 0:00:36.1]} 26. Na3 {[%clk 0:00:50.6]} 26... Rad8 {[%clk
0:00:28.8]} 27. Nc2 {[%clk 0:00:48.4]} 27... Re7 {[%clk 0:00:19.7]} 28. Qf3
{[%clk 0:00:37]} 28... b5 {[%clk 0:00:15.9]} 29. Qxc6 {[%clk 0:00:26.4]} 29...
bxc4 {[%clk 0:00:15.7]} 30. bxc4 {[%clk 0:00:26.4]} 30... Qxh5 {[%clk
0:00:16.1]} 31. Qf3 {[%clk 0:00:23.9]} 31... Qg5 {[%clk 0:00:13.5]} 32. Ncb4
{[%clk 0:00:19.7]} 32... Bxc4 {[%clk 0:00:13.1]} 33. Nf4 {[%clk 0:00:15.7]}
33... Re1+ {[%clk 0:00:10.1]} 34. Kh2 {[%clk 0:00:15]} 34... Qh4+ {[%clk
0:00:09.6]} 35. Nh3 {[%clk 0:00:15.2]} 35... Bf7 {[%clk 0:00:08.6]} 36. Nc6
{[%clk 0:00:14.7]} 36... Rde8 {[%clk 0:00:08.2]} 37. Nxd4 {[%clk 0:00:13.3]}
37... Qxd4 {[%clk 0:00:07.3]} 38. Ng5 {[%clk 0:00:09.1]} 38... Qh4+ {[%clk
0:00:07.3]} 39. Nh3 {[%clk 0:00:09.3]} 39... R8e3 {[%clk 0:00:07.5]} 40. Qa8+
{[%clk 0:00:09]} 40... Kg7 {[%clk 0:00:07.4]} 41. Qxa7 {[%clk 0:00:08.9]} 41...
Qg3# {[%clk 0:00:07.6]} 0-1

[Event "Late-Titled-Tuesday-Blitz-May-14-2024"]
[Site "Chess.com"]
[Date "2024.05.14"]
[Round "6"]
[White "simaopdias"]
[Black "Supelyel"]
[Result "0-1"]
[WhiteElo "2229"]
[BlackElo "2423"]
[TimeControl "180+1"]
[EndTime "15:06:28 PDT"]
[Termination "Supelyel won on time"]

1. e4 {[%clk 0:01:53.8]} 1... d6 {[%clk 0:02:58.9]} 2. Nc3 {[%clk 0:01:53.4]}
2... Nf6 {[%clk 0:02:59.6]} 3. d4 {[%clk 0:01:53.9]} 3... e5 {[%clk 0:02:59.9]}
4. Nf3 {[%clk 0:01:53.5]} 4... Nbd7 {[%clk 0:02:59.6]} 5. Be2 {[%clk 0:01:53.4]}
5... Be7 {[%clk 0:02:59.6]} 6. Be3 {[%clk 0:01:53.7]} 6... O-O {[%clk 0:03:00]}
7. h3 {[%clk 0:01:54.3]} 7... c6 {[%clk 0:03:00.5]} 8. O-O {[%clk 0:01:54.3]}
8... b5 {[%clk 0:03:00.8]} 9. a3 {[%clk 0:01:54.1]} 9... a6 {[%clk 0:02:58.8]}
10. Re1 {[%clk 0:01:51.8]} 10... Bb7 {[%clk 0:02:58.1]} 11. Qd2 {[%clk
0:01:51.8]} 11... Re8 {[%clk 0:02:49.2]} 12. Rad1 {[%clk 0:01:52]} 12... Qc7
{[%clk 0:02:49.3]} 13. Bf1 {[%clk 0:01:49.9]} 13... c5 {[%clk 0:02:48.5]} 14. d5
{[%clk 0:01:48.4]} 14... b4 {[%clk 0:02:47.9]} 15. axb4 {[%clk 0:01:47.9]} 15...
cxb4 {[%clk 0:02:47.9]} 16. Na4 {[%clk 0:01:44.4]} 16... Nxe4 {[%clk 0:02:46.9]}
17. Qd3 {[%clk 0:01:44.4]} 17... Nef6 {[%clk 0:02:45.1]} 18. c4 {[%clk
0:01:37.9]} 18... e4 {[%clk 0:02:44.7]} 19. Qe2 {[%clk 0:01:28]} 19... exf3
{[%clk 0:02:27.4]} 20. Qxf3 {[%clk 0:01:28.9]} 20... a5 {[%clk 0:02:15.7]} 21.
Qg3 {[%clk 0:01:20.6]} 21... Bf8 {[%clk 0:02:10.6]} 22. Bd3 {[%clk 0:01:14.6]}
22... Ne4 {[%clk 0:02:08.6]} 23. Qh4 {[%clk 0:01:10.1]} 23... Qd8 {[%clk
0:01:40.2]} 24. Qxd8 {[%clk 0:01:00.3]} 24... Raxd8 {[%clk 0:01:39.6]} 25. Nb6
{[%clk 0:00:43.7]} 25... Nec5 {[%clk 0:01:29]} 26. Nxd7 {[%clk 0:00:36.5]} 26...
Nxd7 {[%clk 0:01:14.8]} 27. Bg5 {[%clk 0:00:26]} 27... f6 {[%clk 0:01:04.9]} 28.
Bf4 {[%clk 0:00:24]} 28... g6 {[%clk 0:01:03.6]} 29. g4 {[%clk 0:00:20.2]} 29...
Kf7 {[%clk 0:01:03.4]} 30. Be3 {[%clk 0:00:18.3]} 30... Ne5 {[%clk 0:01:03.6]}
31. Be2 {[%clk 0:00:17.7]} 31... Nd7 {[%clk 0:01:03.9]} 32. Kg2 {[%clk
0:00:16.7]} 32... Rc8 {[%clk 0:00:59.3]} 33. b3 {[%clk 0:00:16.2]} 33... Nc5
{[%clk 0:00:59.6]} 34. Rb1 {[%clk 0:00:14.6]} 34... Rc7 {[%clk 0:00:53]} 35. Kf1
{[%clk 0:00:14.9]} 35... Bc8 {[%clk 0:00:53.2]} 36. Ra1 {[%clk 0:00:10.7]} 36...
Nxb3 {[%clk 0:00:53.3]} 37. Ra2 {[%clk 0:00:10.4]} 37... Bd7 {[%clk 0:00:50.3]}
38. Rb1 {[%clk 0:00:08.1]} 38... a4 {[%clk 0:00:50.5]} 39. Bd1 {[%clk
0:00:06.5]} 39... Nc5 {[%clk 0:00:45.4]} 40. Rxb4 {[%clk 0:00:06.1]} 40... Ra8
{[%clk 0:00:43]} 41. Ra3 {[%clk 0:00:05.7]} 41... Be7 {[%clk 0:00:39.9]} 42. Rb2
{[%clk 0:00:04.2]} 42... f5 {[%clk 0:00:40]} 43. f3 {[%clk 0:00:03.6]} 43... Bf6
{[%clk 0:00:40.1]} 44. Rf2 {[%clk 0:00:01.5]} 44... h6 {[%clk 0:00:33.7]} 45.
Kg2 {[%clk 0:00:02]} 45... g5 {[%clk 0:00:33.5]} 46. gxf5 {[%clk 0:00:01.5]}
46... Bxf5 {[%clk 0:00:34.4]} 0-1